fUSD/lending_fUSD_20240412
["ID","MTS","AMOUNT","RATE_DAILY","PERIOD"]
[322260894,1712916682498,-494.22422108,0.00031918,2]
[322260895,1712916682508,-231.87406009,0.00031918,2]
[322260896,1712916682518,-231.87406009,0.00031918,2]
[322260897,1712916682527,-494.22422108,0.00031919,2]
[322260898,1712916682537,-153.95330426,0.00031921,7]
[322260899,1712916682547,-400.11321085,0.00031924,2]
[322260900,1712916682557,-991.50124542,0.00031924,2]
[322260901,1712916682567,-991.50124542,0.00031924,2]
[322260902,1712916682576,-231.87406009,0.00031926,2]
[322260903,1712916682586,-498.6156957,0.00031928,2]
[322260904,1712916682595,-400.11321085,0.00031928,2]
[322260905,1712916682604,-498.6156957,0.0003193,2]
[322260906,1712916682613,-213.61452077,0.00031934,2]
[322260907,1712916682623,-400.11321085,0.00031938,2]
[322260908,1712916682632,-231.87406009,0.00031939,2]
[322260909,1712916682642,-231.87406009,0.00031941,2]
[322260910,1712916682652,-213.61452077,0.00031941,2]
[322260911,1712916682661,-213.61452077,0.00031946,2]
[322260912,1712916682671,-213.61452077,0.00031946,2]
[322260913,1712916682682,-400.11321085,0.00031955,2]
[322260914,1712916682693,-1390.0,0.00031956,2]
[322260915,1712916682702,-967.0,0.00031956,2]
[322260916,1712916682712,-150.0,0.00031956,2]
[322260917,1712916682722,-217.164,0.00031956,2]
[322260918,1712916682731,-1260.0,0.00031956,2]
[322260919,1712916682740,-540.0,0.00031956,2]
[322260920,1712916682749,-494.22422108,0.00031957,2]
[322260921,1712916682759,-400.11321085,0.00031958,2]
[322260922,1712916682769,-231.87406009,0.0003196,2]
[322260923,1712916682779,-494.22422108,0.00031966,2]
[322260924,1712916682789,-400.11321085,0.0003197,2]
[322260925,1712916682799,-231.87406009,0.0003197,2]
[322260926,1712916682808,-494.22422108,0.00031979,2]
[322260927,1712916682818,-991.50124542,0.00031987,2]
[322260928,1712916682827,-991.50124542,0.00031987,2]
[322260929,1712916682836,-494.22422108,0.00031988,2]
[322260930,1712916682848,-213.61452077,0.00031989,2]
[322260931,1712916682858,-400.11321085,0.00031989,2]
[322260932,1712916682867,-991.50124542,0.00031993,2]
[322260933,1712916682876,-498.6156957,0.00031995,2]
[322260934,1712916682886,-213.61452077,0.00031998,2]
[322260935,1712916682895,-332.95119539,0.00032,4]
[322260936,1712916682904,-11000.0,0.00032,2]
[322260937,1712916682914,-1500.78124376,0.00032,3]
[322260938,1712916682923,-506.52,0.00032012,2]
[322260939,1712916683046,-500.0,0.00032012,2]
[322260940,1712916683059,-500.0,0.00032012,2]
[322260941,1712916683068,-500.0,0.00032012,2]
[322260942,1712916683077,-527.69,0.00032012,2]
[322260943,1712916683087,-500.0,0.00032012,2]
[322260944,1712916683096,-500.0,0.00032012,2]
[322260945,1712916683105,-666.66,0.00032012,2]
[322260946,1712916683114,-500.0,0.00032012,2]
[322260947,1712916683123,-500.0,0.00032012,2]
[322260948,1712916683133,-500.0,0.00032012,2]
[322260949,1712916683142,-752.76,0.00032012,2]
[322260950,1712916683152,-586.11,0.00032012,2]
[322260951,1712916683161,-537.49,0.00032012,2]
[322260952,1712916683170,-500.0,0.00032012,2]
[322260953,1712916683180,-764.86,0.00032012,2]
[322260954,1712916683189,-500.0,0.00032012,2]
[322260955,1712916683199,-550.76,0.00032012,2]
[322260956,1712916683208,-500.0,0.00032012,2]
[322260957,1712916683217,-500.0,0.00032012,2]
[322260958,1712916683227,-813.78,0.00032012,2]
[322260959,1712916683236,-720.83,0.00032012,2]
[322260960,1712916683245,-500.0,0.00032012,2]
[322260961,1712916683255,-638.66,0.00032013,2]
[322260962,1712916683263,-500.0,0.00032013,2]
[322260963,1712916683273,-500.0,0.00032013,2]
[322260964,1712916683282,-500.0,0.00032013,2]
[322260965,1712916683291,-500.0,0.00032013,2]
[322260966,1712916683300,-577.83,0.00032013,2]
[322260967,1712916683310,-544.32,0.00032013,2]
[322260968,1712916683319,-500.0,0.00032013,2]
[322260969,1712916683328,-195.16314754,0.00032013,2]
[322260970,1712916683337,-638.14,0.00032013,2]
[322260971,1712916683346,-708.33,0.00032013,2]
[322260972,1712916683356,-500.0,0.00032013,2]
[322260973,1712916683365,-500.0,0.00032013,2]
[322260974,1712916683374,-597.04,0.00032013,2]
[322260975,1712916683383,-500.0,0.00032013,2]
[322260976,1712916683392,-507.78,0.00032013,2]
[322260977,1712916683402,-500.0,0.00032013,2]
[322260978,1712916683411,-500.0,0.00032013,2]
[322260979,1712916683421,-500.0,0.00032013,2]
[322260980,1712916683431,-156.33363119,0.00032023,7]
[322260981,1712916683440,-500.0,0.00032054,2]
[322260982,1712916683450,-500.0,0.00032054,2]
[322260983,1712916683461,-500.0,0.00032054,2]
[322260984,1712916683471,-500.0,0.00032054,2]
[322260985,1712916683480,-500.0,0.00032054,2]
[322260986,1712916683491,-844.56,0.00032054,2]
[322260987,1712916683501,-1528.81,0.00032054,2]
[322260988,1712916683512,-513.6,0.00032054,2]
[322260989,1712916683522,-500.0,0.00032054,2]
[322260990,1712916683531,-1391.19,0.00032054,2]
[322260991,1712916683540,-500.0,0.00032054,2]
[322260992,1712916683550,-1076.28,0.00032054,2]
[322260993,1712916683559,-500.0,0.00032054,2]
[322260994,1712916683569,-550.78,0.00032054,2]
[322260995,1712916683578,-613.24,0.00032054,2]
[322260996,1712916683587,-578.33,0.00032054,2]
[322260997,1712916683597,-4360.31,0.00032054,2]
[322260998,1712916683606,-500.0,0.00032054,2]
[322260999,1712916683615,-153.35,0.00032054,2]
[322261000,1712916683625,-589.66,0.00032054,2]
[322261001,1712916683634,-2207.75,0.00032054,2]
[322261002,1712916683643,-730.85,0.00032054,2]
[322261003,1712916683653,-224.69066821,0.00032054,2]
[322261004,1712916683663,-834.74,0.00032054,2]
[322261005,1712916683672,-500.0,0.00032054,2]
[322261006,1712916683682,-503.47,0.00032054,2]
[322261007,1712916683692,-652.05,0.00032054,2]
[322261008,1712916683702,-1520.01,0.00032054,2]
[322261009,1712916683712,-504.37,0.00032054,2]
[322261010,1712916683722,-687.97,0.00032054,2]
[322261011,1712916683734,-942.27,0.00032054,2]
[322261012,1712916683746,-181.16951572,0.00032054,2]
[322261013,1712916683756,-1124.32,0.00032054,2]
[322261014,1712916683768,-500.0,0.00032054,2]
[322261015,1712916683779,-500.0,0.00032054,2]
[322261016,1712916683788,-500.0,0.00032054,2]
[322261017,1712916683798,-500.0,0.00032054,2]
[322261018,1712916683807,-724.59,0.00032054,2]
[322261019,1712916683817,-1077.64,0.00032054,2]
[322261020,1712916683826,-1340.25,0.00032054,2]
[322261021,1712916683836,-500.0,0.00032054,2]
[322261022,1712916683845,-1717.34,0.00032054,2]
[322261023,1712916683856,-500.0,0.00032054,2]
[322261024,1712916683865,-1068.06,0.00032054,2]
[322261025,1712916683876,-641.93,0.00032054,2]
[322261026,1712916683886,-821.08,0.00032054,2]
[322261027,1712916683896,-604.09,0.00032054,2]
[322261028,1712916683906,-5530.8,0.00032054,2]
[322261029,1712916683916,-1904.72,0.00032054,2]
[322261030,1712916683926,-800.47,0.00032054,2]
[322261031,1712916683937,-2261.68,0.00032054,2]
[322261032,1712916683946,-604.39,0.00032054,2]
[322261033,1712916683957,-2052.73,0.00032054,2]
[322261034,1712916683966,-1035.94,0.00032054,2]
[322261035,1712916683975,-500.0,0.00032054,2]
[322261036,1712916683985,-1186.85,0.00032054,2]
[322261037,1712916683994,-930.87,0.00032054,2]
[322261038,1712916684004,-763.34,0.00032054,2]
[322261039,1712916684015,-1062.21,0.00032054,2]
[322261040,1712916684024,-888.39,0.00032054,2]
[322261041,1712916684034,-684.38,0.00032054,2]
[322261042,1712916684044,-925.96,0.00032054,2]
[322261043,1712916684055,-510.32,0.00032054,2]
[322261044,1712916684065,-1070.46,0.00032054,2]
[322261045,1712916684075,-500.0,0.00032054,2]
[322261046,1712916684086,-500.0,0.00032054,2]
[322261047,1712916684096,-683.24,0.00032054,2]
[322261048,1712916684105,-9883.5,0.00032054,2]
[322261049,1712916684116,-500.0,0.00032054,2]
[322261050,1712916684125,-500.0,0.00032054,2]
[322261051,1712916684136,-500.0,0.00032054,2]
[322261052,1712916684146,-500.0,0.00032054,2]
[322261053,1712916684156,-3764.32,0.00032054,2]
[322261054,1712916684166,-1203.6,0.00032054,2]
[322261055,1712916684175,-1505.66,0.00032054,2]
[322261056,1712916684184,-160.62596681,0.00032056,7]
[322261057,1712916684193,-157.83691746,0.00032076,7]
[322261058,1712916684202,-380.0,0.00032087,2]
[322261059,1712916684211,-380.0,0.00032089,2]
[322261060,1712916684220,-380.0,0.00032089,2]
[322261061,1712916684230,-379.99,0.00032103,2]
[322261062,1712916684239,-380.0,0.00032119,2]
[322261063,1712916684248,-313.92,0.00032122,2]
[322261064,1712916684258,-157.83691746,0.00032145,7]
[322261065,1712916684267,-157.83691746,0.00032189,7]
[322261066,1712916684276,-157.83691746,0.00032219,7]
[322261067,1712916684285,-176.80854381,0.00032235,7]
[322261068,1712916684295,-506.52,0.00032286,2]
[322261069,1712916684304,-500.0,0.00032286,2]
[322261070,1712916684313,-500.0,0.00032286,2]
[322261071,1712916684322,-500.0,0.00032286,2]
[322261072,1712916684332,-527.69,0.00032286,2]
[322261073,1712916684341,-500.0,0.00032286,2]
[322261074,1712916684350,-500.0,0.00032286,2]
[322261075,1712916684359,-666.66,0.00032286,2]
[322261076,1712916684368,-500.0,0.00032286,2]
[322261077,1712916684378,-460.84730439,0.00032286,2]
[322261078,1712916684387,-500.0,0.00032286,2]
[322261079,1712916684396,-752.76,0.00032286,2]
[322261080,1712916684406,-586.11,0.00032286,2]
[322261081,1712916684415,-537.49,0.00032286,2]
[322261082,1712916684425,-500.0,0.00032286,2]
[322261083,1712916684435,-764.86,0.00032286,2]
[322261084,1712916684444,-500.0,0.00032286,2]
[322261085,1712916684454,-550.76,0.00032286,2]
[322261086,1712916684463,-500.0,0.00032286,2]
[322261087,1712916684473,-500.0,0.00032286,2]
[322261088,1712916684483,-813.78,0.00032286,2]
[322261089,1712916684492,-720.83,0.00032286,2]
[322261090,1712916684502,-500.0,0.00032286,2]
[322261091,1712916684511,-638.66,0.00032287,2]
[322261092,1712916684521,-500.0,0.00032287,2]
[322261093,1712916684530,-500.0,0.00032287,2]
[322261094,1712916684540,-500.0,0.00032287,2]
[322261095,1712916684549,-500.0,0.00032287,2]
[322261096,1712916684559,-577.83,0.00032287,2]
[322261097,1712916684569,-544.32,0.00032287,2]
[322261098,1712916684579,-500.0,0.00032287,2]
[322261099,1712916684589,-638.14,0.00032287,2]
[322261100,1712916684598,-708.33,0.00032287,2]
[322261101,1712916684607,-500.0,0.00032287,2]
[322261102,1712916684616,-500.0,0.00032287,2]
[322261103,1712916684626,-597.04,0.00032287,2]
[322261104,1712916684636,-500.0,0.00032287,2]
[322261105,1712916684646,-507.78,0.00032287,2]
[322261106,1712916684656,-500.0,0.00032287,2]
[322261107,1712916684665,-500.0,0.00032287,2]
[322261108,1712916684675,-500.0,0.00032287,2]
[322261109,1712916684688,-16808.68664119,0.000323,2]
[322261110,1712916684698,-157.83691746,0.00032308,7]
[322261111,1712916684707,-153.95330426,0.00032317,7]
[322261112,1712916684718,-154.14042621,0.00032318,7]
[322261113,1712916684728,-152.32027782,0.00032324,7]
[322261114,1712916684737,-254.15598807,0.00032328,2]
[322261115,1712916684750,-500.0,0.00032328,2]
[322261116,1712916684761,-500.0,0.00032328,2]
[322261117,1712916684772,-558.44,0.00032328,2]
[322261118,1712916684781,-844.56,0.00032328,2]
[322261119,1712916684792,-1528.81,0.00032328,2]
[322261120,1712916684801,-513.6,0.00032328,2]
[322261121,1712916684812,-500.0,0.00032328,2]
[322261122,1712916684822,-1391.19,0.00032328,2]
[322261123,1712916684832,-500.0,0.00032328,2]
[322261124,1712916684842,-1076.28,0.00032328,2]
[322261125,1712916684958,-500.0,0.00032328,2]
[322261126,1712916684969,-550.78,0.00032328,2]
[322261127,1712916684979,-613.24,0.00032328,2]
[322261128,1712916684988,-578.33,0.00032328,2]
[322261129,1712916684997,-4360.31,0.00032328,2]
[322261130,1712916685006,-500.0,0.00032328,2]
[322261131,1712916685015,-589.66,0.00032328,2]
[322261132,1712916685025,-2207.75,0.00032328,2]
[322261133,1712916685037,-730.85,0.00032328,2]
[322261134,1712916685047,-834.74,0.00032328,2]
[322261135,1712916685058,-500.0,0.00032328,2]
[322261136,1712916685069,-503.47,0.00032328,2]
[322261137,1712916685078,-652.05,0.00032328,2]
[322261138,1712916685089,-1520.01,0.00032328,2]
[322261139,1712916685099,-504.37,0.00032328,2]
[322261140,1712916685109,-687.97,0.00032328,2]
[322261141,1712916685119,-942.27,0.00032328,2]
[322261142,1712916685130,-1124.32,0.00032328,2]
[322261143,1712916685140,-500.0,0.00032328,2]
[322261144,1712916685151,-500.0,0.00032328,2]
[322261145,1712916685161,-500.0,0.00032328,2]
[322261146,1712916685171,-610.27988533,0.00032328,2]
[322261147,1712916685180,-724.59,0.00032328,2]
[322261148,1712916685191,-1077.64,0.00032328,2]
[322261149,1712916685203,-1340.25,0.00032328,2]
[322261150,1712916685213,-500.0,0.00032328,2]
[322261151,1712916685223,-1717.34,0.00032328,2]
[322261152,1712916685233,-1068.06,0.00032328,2]
[322261153,1712916685244,-641.93,0.00032328,2]
[322261154,1712916685256,-821.08,0.00032328,2]
[322261155,1712916685266,-604.09,0.00032328,2]
[322261156,1712916685276,-5530.8,0.00032328,2]
[322261157,1712916685286,-1904.72,0.00032328,2]
[322261158,1712916685296,-800.47,0.00032328,2]
[322261159,1712916685306,-2261.68,0.00032328,2]
[322261160,1712916685317,-604.39,0.00032328,2]
[322261161,1712916685326,-2052.73,0.00032328,2]
[322261162,1712916685336,-1035.94,0.00032328,2]
[322261163,1712916685346,-500.0,0.00032328,2]
[322261164,1712916685357,-1186.85,0.00032328,2]
[322261165,1712916685366,-930.87,0.00032328,2]
[322261166,1712916685377,-763.34,0.00032328,2]
[322261167,1712916685386,-1062.21,0.00032328,2]
[322261168,1712916685395,-888.39,0.00032328,2]
[322261169,1712916685405,-684.38,0.00032328,2]
[322261170,1712916685416,-925.96,0.00032328,2]
[322261171,1712916685426,-510.32,0.00032328,2]
[322261172,1712916685436,-1070.46,0.00032328,2]
[322261173,1712916685446,-500.0,0.00032328,2]
[322261174,1712916685457,-500.0,0.00032328,2]
[322261175,1712916685468,-683.24,0.00032328,2]
[322261176,1712916685478,-9883.5,0.00032328,2]
[322261177,1712916685489,-282.40239661,0.00032328,2]
[322261178,1712916685498,-555.77,0.00032328,2]
[322261179,1712916685508,-500.0,0.00032328,2]
[322261180,1712916685517,-3764.32,0.00032328,2]
[322261181,1712916685528,-1203.6,0.00032328,2]
[322261182,1712916685538,-1505.66,0.00032328,2]
[322261183,1712916685547,-166.66666667,0.00032347,7]
[322261184,1712916685556,-154.14042621,0.00032375,7]
[322261185,1712916685565,-7297.0442117,0.000324,2]
[322261186,1712916685574,-500.0,0.00032409,2]
[322261187,1712916685583,-154.14042621,0.00032462,7]
[322261188,1712916685593,-155.07714216,0.00032464,7]
[322261189,1712916685602,-154.30704407,0.00032467,7]
[322261190,1712916685611,-155.07714216,0.00032487,7]
[322261191,1712916685620,-154.14042621,0.00032557,7]
[322261192,1712916685630,-506.52,0.0003256,2]
[322261193,1712916685639,-247.72196204,0.0003256,2]
[322261194,1712916685648,-500.0,0.0003256,2]
[322261195,1712916685657,-500.0,0.0003256,2]
[322261196,1712916685707,-527.69,0.0003256,2]
[322261197,1712916685716,-500.0,0.0003256,2]
[322261198,1712916685726,-500.0,0.0003256,2]
[322261199,1712916685735,-666.66,0.0003256,2]
[322261200,1712916685744,-500.0,0.0003256,2]
[322261201,1712916685754,-500.0,0.0003256,2]
[322261202,1712916685764,-752.76,0.0003256,2]
[322261203,1712916685774,-586.11,0.0003256,2]
[322261204,1712916685786,-537.49,0.0003256,2]
[322261205,1712916685795,-500.0,0.0003256,2]
[322261206,1712916685805,-764.86,0.0003256,2]
[322261207,1712916685814,-500.0,0.0003256,2]
[322261208,1712916685824,-550.76,0.0003256,2]
[322261209,1712916685833,-500.0,0.0003256,2]
[322261210,1712916685842,-500.0,0.0003256,2]
[322261211,1712916685852,-813.78,0.0003256,2]
[322261212,1712916685861,-720.83,0.0003256,2]
[322261213,1712916685871,-500.0,0.0003256,2]
[322261214,1712916685881,-638.66,0.00032561,2]
[322261215,1712916685890,-500.0,0.00032561,2]
[322261216,1712916685899,-500.0,0.00032561,2]
[322261217,1712916685908,-500.0,0.00032561,2]
[322261218,1712916685917,-500.0,0.00032561,2]
[322261219,1712916685926,-577.83,0.00032561,2]
[322261220,1712916685937,-544.32,0.00032561,2]
[322261221,1712916685947,-638.14,0.00032561,2]
[322261222,1712916685959,-708.33,0.00032561,2]
[322261223,1712916685970,-500.0,0.00032561,2]
[322261224,1712916685982,-500.0,0.00032561,2]
[322261225,1712916685994,-597.04,0.00032561,2]
[322261226,1712916686005,-500.0,0.00032561,2]
[322261227,1712916686015,-507.78,0.00032561,2]
[322261228,1712916686026,-511.49234615,0.00032561,2]
[322261229,1712916686038,-500.0,0.00032561,2]
[322261230,1712916686050,-500.0,0.00032561,2]
[322261231,1712916686062,-500.0,0.00032599,2]
[322261232,1712916686074,-611.07740058,0.000326,20]
[322261233,1712916686088,-500.0,0.00032602,2]
[322261234,1712916686099,-500.0,0.00032602,2]
[322261235,1712916686111,-844.56,0.00032602,2]
[322261236,1712916686122,-1528.81,0.00032602,2]
[322261237,1712916686133,-513.6,0.00032602,2]
[322261238,1712916686144,-500.0,0.00032602,2]
[322261239,1712916686155,-1391.19,0.00032602,2]
[322261240,1712916686166,-390.972918,0.00032602,2]
[322261241,1712916686176,-1076.28,0.00032602,2]
[322261242,1712916686187,-500.0,0.00032602,2]
[322261243,1712916686198,-550.78,0.00032602,2]
[322261244,1712916686208,-613.24,0.00032602,2]
[322261245,1712916686218,-578.33,0.00032602,2]
[322261246,1712916686227,-4360.31,0.00032602,2]
[322261247,1712916686238,-589.66,0.00032602,2]
[322261248,1712916686249,-2207.75,0.00032602,2]
[322261249,1712916686260,-730.85,0.00032602,2]
[322261250,1712916686270,-834.74,0.00032602,2]
[322261251,1712916686280,-500.0,0.00032602,2]
[322261252,1712916686291,-503.47,0.00032602,2]
[322261253,1712916686302,-652.05,0.00032602,2]
[322261254,1712916686313,-1520.01,0.00032602,2]
[322261255,1712916686324,-504.37,0.00032602,2]
[322261256,1712916686338,-687.97,0.00032602,2]
[322261257,1712916686350,-942.27,0.00032602,2]
[322261258,1712916686361,-1124.32,0.00032602,2]
[322261259,1712916686371,-500.0,0.00032602,2]
[322261260,1712916686381,-500.0,0.00032602,2]
[322261261,1712916686392,-724.59,0.00032602,2]
[322261262,1712916686402,-1077.64,0.00032602,2]
[322261263,1712916686413,-1340.25,0.00032602,2]
[322261264,1712916686424,-500.0,0.00032602,2]
[322261265,1712916686434,-1717.34,0.00032602,2]
[322261266,1712916686445,-1068.06,0.00032602,2]
[322261267,1712916686455,-641.93,0.00032602,2]
[322261268,1712916686467,-821.08,0.00032602,2]
[322261269,1712916686477,-604.09,0.00032602,2]
[322261270,1712916686488,-5530.8,0.00032602,2]
[322261271,1712916686499,-1904.72,0.00032602,2]
[322261272,1712916686511,-800.47,0.00032602,2]
[322261273,1712916686527,-2261.68,0.00032602,2]
[322261274,1712916686539,-604.39,0.00032602,2]
[322261275,1712916686550,-2052.73,0.00032602,2]
[322261276,1712916686560,-1035.94,0.00032602,2]
[322261277,1712916686570,-1186.85,0.00032602,2]
[322261278,1712916686581,-930.87,0.00032602,2]
[322261279,1712916686594,-763.34,0.00032602,2]
[322261280,1712916686604,-1062.21,0.00032602,2]
[322261281,1712916686616,-888.39,0.00032602,2]
[322261282,1712916686629,-684.38,0.00032602,2]
[322261283,1712916686640,-925.96,0.00032602,2]
[322261284,1712916686651,-1070.46,0.00032602,2]
[322261285,1712916686666,-510.32,0.00032602,2]
[322261286,1712916686676,-502.17,0.00032602,2]
[322261287,1712916686691,-583.50496074,0.00032602,2]
[322261288,1712916686701,-683.24,0.00032602,2]
[322261289,1712916686712,-9883.5,0.00032602,2]
[322261290,1712916686724,-3764.32,0.00032602,2]
[322261291,1712916686734,-1203.6,0.00032602,2]
[322261292,1712916686745,-1505.66,0.00032602,2]
[322261293,1712916686755,-4558.36,0.00032603,2]
[322261294,1712916686765,-6006.88,0.00032603,2]
[322261295,1712916686878,-159.14360615,0.00032609,7]
[322261296,1712916686889,-160.62596681,0.00032648,7]
[322261297,1712916686899,-153.95330426,0.00032698,7]
[322261298,1712916686909,-157.43248173,0.00032707,7]
[322261299,1712916686920,-159.14360615,0.0003283,7]
[322261300,1712916686929,-506.52,0.00032834,2]
[322261301,1712916686940,-500.0,0.00032834,2]
[322261302,1712916686950,-500.0,0.00032834,2]
[322261303,1712916686959,-527.69,0.00032834,2]
[322261304,1712916686970,-500.0,0.00032834,2]
[322261305,1712916686979,-500.0,0.00032834,2]
[322261306,1712916686990,-666.66,0.00032834,2]
[322261307,1712916687000,-500.0,0.00032834,2]
[322261308,1712916687010,-277.58933866,0.00032834,2]
[322261309,1712916687019,-752.76,0.00032834,2]
[322261310,1712916687030,-586.11,0.00032834,2]
[322261311,1712916687041,-537.49,0.00032834,2]
[322261312,1712916687052,-500.0,0.00032834,2]
[322261313,1712916687061,-764.86,0.00032834,2]
[322261314,1712916687071,-500.0,0.00032834,2]
[322261315,1712916687081,-550.76,0.00032834,2]
[322261316,1712916687092,-500.0,0.00032834,2]
[322261317,1712916687102,-500.0,0.00032834,2]
[322261318,1712916687113,-813.78,0.00032834,2]
[322261319,1712916687122,-720.83,0.00032834,2]
[322261320,1712916687133,-500.0,0.00032834,2]
[322261321,1712916687143,-638.66,0.00032835,2]
[322261322,1712916687153,-500.0,0.00032835,2]
[322261323,1712916687163,-500.0,0.00032835,2]
[322261324,1712916687174,-500.0,0.00032835,2]
[322261325,1712916687184,-500.0,0.00032835,2]
[322261326,1712916687194,-577.83,0.00032835,2]
[322261327,1712916687204,-544.32,0.00032835,2]
[322261328,1712916687214,-638.14,0.00032835,2]
[322261329,1712916687224,-708.33,0.00032835,2]
[322261330,1712916687235,-500.0,0.00032835,2]
[322261331,1712916687245,-500.0,0.00032835,2]
[322261332,1712916687255,-597.04,0.00032835,2]
[322261333,1712916687267,-500.0,0.00032835,2]
[322261334,1712916687277,-507.78,0.00032835,2]
[322261335,1712916687289,-500.0,0.00032835,2]
[322261336,1712916687299,-500.0,0.00032835,2]
[322261337,1712916687310,-152.0,0.00032843,3]
[322261338,1712916687320,-155.07714216,0.00032855,7]
[322261339,1712916687329,-342.05,0.00032875,2]
[322261340,1712916687339,-960.0,0.00032876,2]
[322261341,1712916687351,-500.0,0.00032876,2]
[322261342,1712916687361,-500.0,0.00032876,2]
[322261343,1712916687370,-844.56,0.00032876,2]
[322261344,1712916687379,-1528.81,0.00032876,2]
[322261345,1712916687389,-513.6,0.00032876,2]
[322261346,1712916687399,-500.0,0.00032876,2]
[322261347,1712916687408,-1391.19,0.00032876,2]
[322261348,1712916687418,-1076.28,0.00032876,2]
[322261349,1712916687427,-550.78,0.00032876,2]
[322261350,1712916687437,-613.24,0.00032876,2]
[322261351,1712916687447,-578.33,0.00032876,2]
[322261352,1712916687458,-4360.31,0.00032876,2]
[322261353,1712916687468,-589.66,0.00032876,2]
[322261354,1712916687478,-2207.75,0.00032876,2]
[322261355,1712916687489,-730.85,0.00032876,2]
[322261356,1712916687498,-834.74,0.00032876,2]
[322261357,1712916687508,-573.61,0.00032876,2]
[322261358,1712916687518,-503.47,0.00032876,2]
[322261359,1712916687529,-652.05,0.00032876,2]
[322261360,1712916687540,-1520.01,0.00032876,2]
[322261361,1712916687551,-504.37,0.00032876,2]
[322261362,1712916687561,-687.97,0.00032876,2]
[322261363,1712916687571,-942.27,0.00032876,2]
[322261364,1712916687581,-1124.32,0.00032876,2]
[322261365,1712916687592,-500.0,0.00032876,2]
[322261366,1712916687602,-500.0,0.00032876,2]
[322261367,1712916687613,-724.59,0.00032876,2]
[322261368,1712916687622,-1077.64,0.00032876,2]
[322261369,1712916687632,-1340.25,0.00032876,2]
[322261370,1712916687642,-500.0,0.00032876,2]
[322261371,1712916687652,-1717.34,0.00032876,2]
[322261372,1712916687662,-1068.06,0.00032876,2]
[322261373,1712916687679,-641.93,0.00032876,2]
[322261374,1712916687703,-821.08,0.00032876,2]
[322261375,1712916687721,-604.09,0.00032876,2]
[322261376,1712916687742,-5530.8,0.00032876,2]
[322261377,1712916687761,-1904.72,0.00032876,2]
[322261378,1712916687778,-800.47,0.00032876,2]
[322261379,1712916687798,-2261.68,0.00032876,2]
[322261380,1712916687815,-604.39,0.00032876,2]
[322261381,1712916687833,-2052.73,0.00032876,2]
[322261382,1712916687852,-1035.94,0.00032876,2]
[322261383,1712916687869,-1186.85,0.00032876,2]
[322261384,1712916687888,-930.87,0.00032876,2]
[322261385,1712916687909,-763.34,0.00032876,2]
[322261386,1712916687922,-1062.21,0.00032876,2]
[322261387,1712916687939,-888.39,0.00032876,2]
[322261388,1712916687956,-684.38,0.00032876,2]
[322261389,1712916687970,-925.96,0.00032876,2]
[322261390,1712916687989,-1070.46,0.00032876,2]
[322261391,1712916688005,-510.32,0.00032876,2]
[322261392,1712916688022,-9883.5,0.00032876,2]
[322261393,1712916688036,-683.24,0.00032876,2]